fUST/lending_fUST_20250218
["ID","MTS","AMOUNT","RATE_DAILY","PERIOD"]
[353479889,1739875832947,-500.0,0.00013908,2]
[353479890,1739875832957,-500.0,0.00013908,2]
[353479891,1739875832966,-500.0,0.00013908,2]
[353479892,1739875832975,-500.0,0.00013908,2]
[353479893,1739875832985,-500.0,0.00013908,2]
[353479894,1739875832994,-500.0,0.00013908,2]
[353479895,1739875833004,-500.0,0.00013908,2]
[353479896,1739875833014,-400.81531973,0.00013908,2]
[353479897,1739875833025,-500.0,0.00013908,2]
[353479898,1739875833034,-500.0,0.00013908,2]
[353479899,1739875833044,-500.0,0.00013908,2]
[353479900,1739875833054,-500.0,0.00013908,2]
[353479901,1739875833064,-500.0,0.00013908,2]
[353479902,1739875833079,-500.0,0.00013908,2]
[353479903,1739875833089,-500.0,0.00013908,2]
[353479904,1739875833099,-500.0,0.00013908,2]
[353479905,1739875833109,-500.0,0.00013908,2]
[353479906,1739875833119,-500.0,0.00013908,2]
[353479907,1739875833130,-500.0,0.00013908,2]
[353479908,1739875833139,-500.0,0.00013908,2]
[353479909,1739875833150,-500.0,0.00013908,2]
[353479910,1739875833161,-500.0,0.00013908,2]
[353479911,1739875833171,-500.0,0.00013908,2]
[353479912,1739875833180,-472.66903431,0.00013908,2]
[353479913,1739875833190,-500.0,0.00013908,2]
[353479914,1739875833199,-500.0,0.00013908,2]
[353479915,1739875833210,-500.0,0.00013908,2]
[353479916,1739875833310,-500.0,0.00013908,2]
[353479917,1739875833322,-500.0,0.00013908,2]
[353479918,1739875833332,-500.0,0.00013908,2]
[353479919,1739875833342,-500.0,0.00013908,2]
[353479920,1739875833352,-500.0,0.00013908,2]
[353479921,1739875833362,-253.87792953,0.00013908,2]
[353479922,1739875833372,-500.0,0.00013908,2]
[353479923,1739875833382,-500.0,0.00013908,2]
[353479924,1739875833392,-500.0,0.00013909,2]
[353479925,1739875833402,-586.17964857,0.00013909,2]
[353479926,1739875833412,-500.0,0.00013909,2]
[353479927,1739875833422,-459.44929269,0.00013909,2]
[353479928,1739875833432,-500.0,0.00013909,2]
[353479929,1739875833441,-500.0,0.00013909,2]
[353479930,1739875833450,-500.0,0.00013909,2]
[353479931,1739875833460,-633.01,0.00013909,2]
[353479932,1739875833470,-500.0,0.00013909,2]
[353479933,1739875833479,-511.41781928,0.00013909,2]
[353479934,1739875833490,-500.0,0.00013909,2]
[353479935,1739875833500,-500.0,0.00013909,2]
[353479936,1739875833510,-505.9443163,0.00013909,2]
[353479937,1739875833521,-500.0,0.00013909,2]
[353479938,1739875833530,-500.0,0.00013909,2]
[353479939,1739875833540,-638.78,0.00013909,2]
[353479940,1739875833551,-500.0,0.00013909,2]
[353479941,1739875833561,-571.44130957,0.00013909,2]
[353479942,1739875833571,-500.0,0.00013909,2]
[353479943,1739875833581,-500.0,0.00013909,2]
[353479944,1739875833591,-500.0,0.00013909,2]
[353479945,1739875833600,-500.0,0.00013909,2]
[353479946,1739875833610,-500.0,0.00013909,2]
[353479947,1739875833619,-500.0,0.00013909,2]
[353479948,1739875833629,-500.0,0.00013909,2]
[353479949,1739875833639,-500.0,0.00013909,2]
[353479950,1739875833649,-500.0,0.00013909,2]
[353479951,1739875833658,-500.0,0.00013909,2]
[353479952,1739875833668,-500.0,0.00013909,2]
[353479953,1739875833677,-500.0,0.00013909,2]
[353479954,1739875833687,-500.0,0.00013909,2]
[353479955,1739875833697,-500.0,0.00013909,2]
[353479956,1739875833707,-500.0,0.00013909,2]
[353479957,1739875833717,-500.0,0.00013909,2]
[353479958,1739875833727,-500.0,0.00013909,2]
[353479959,1739875833737,-500.0,0.00013909,2]
[353479960,1739875833747,-500.0,0.00013909,2]
[353479961,1739875833756,-500.0,0.00013909,2]
[353479962,1739875833766,-642.21,0.00013909,2]
[353479963,1739875833776,-500.0,0.00013909,2]
[353479964,1739875833786,-620.47,0.00013909,2]
[353479965,1739875833795,-500.0,0.00013909,2]
[353479966,1739875833805,-574.0,0.00013909,2]
[353479967,1739875833814,-500.0,0.00013909,2]
[353479968,1739875833824,-500.0,0.00013909,2]
[353479969,1739875833834,-500.0,0.00013909,2]
[353479970,1739875833843,-500.0,0.00013909,2]
[353479971,1739875833852,-500.0,0.00013909,2]
[353479972,1739875833862,-541.47714576,0.00013909,2]
[353479973,1739875833871,-500.0,0.00013909,2]
[353479974,1739875833880,-500.0,0.00013909,2]
[353479975,1739875833889,-500.0,0.00013909,2]
[353479976,1739875833898,-500.0,0.00013909,2]
[353479977,1739875833909,-500.0,0.00013909,2]
[353479978,1739875833919,-500.0,0.00013909,2]
[353479979,1739875833928,-500.0,0.00013909,2]
[353479980,1739875833937,-500.0,0.00013909,2]
[353479981,1739875833948,-500.0,0.00013909,2]
[353479982,1739875833964,-500.0,0.00013909,2]
[353479983,1739875833973,-500.0,0.00013909,2]
[353479984,1739875833984,-341.27654228,0.00013909,2]
[353479985,1739875833994,-500.0,0.00013909,2]
[353479986,1739875834004,-500.0,0.00013909,2]
[353479987,1739875834014,-500.0,0.00013909,2]
[353479988,1739875834023,-500.0,0.00013909,2]
[353479989,1739875834033,-500.0,0.00013909,2]
[353479990,1739875834043,-519.75,0.00013909,2]
[353479991,1739875834055,-500.0,0.00013909,2]
[353479992,1739875834065,-500.0,0.00013909,2]
[353479993,1739875834078,-500.0,0.00013909,2]
[353479994,1739875834093,-605.86,0.00013909,2]
[353479995,1739875834103,-500.0,0.00013909,2]
[353479996,1739875834112,-500.0,0.00013909,2]
[353479997,1739875834123,-500.0,0.00013909,2]
[353479998,1739875834132,-500.0,0.00013909,2]
[353479999,1739875834141,-500.0,0.00013909,2]
[353480000,1739875834151,-500.0,0.00013909,2]
[353480001,1739875834162,-500.0,0.00013909,2]
[353480002,1739875834172,-500.0,0.00013909,2]
[353480003,1739875834181,-2547.52,0.00013909,2]
[353480004,1739875834191,-500.0,0.00013909,2]
[353480005,1739875834200,-160.28100043,0.00013909,2]
[353480018,1739875837982,-500.0,0.00013908,2]
[353480019,1739875837992,-339.71899957,0.00013909,2]
[353480020,1739875838002,-500.0,0.00013909,2]
[353480021,1739875838011,-500.0,0.00013909,2]
[353480022,1739875838022,-500.0,0.00013909,2]
[353480023,1739875838031,-500.0,0.00013909,2]
[353480024,1739875838041,-500.0,0.00013909,2]
[353480025,1739875838051,-500.0,0.00013909,2]
[353480026,1739875838061,-500.0,0.00013909,2]
[353480027,1739875838073,-500.0,0.00013909,2]
[353480028,1739875838084,-500.0,0.00013909,2]
[353480029,1739875838094,-500.0,0.00013909,2]
[353480030,1739875838104,-500.0,0.00013909,2]
[353480031,1739875838113,-500.0,0.00013909,2]
[353480032,1739875838125,-500.0,0.00013909,2]
[353480033,1739875838134,-500.0,0.00013909,2]
[353480034,1739875838143,-501.55,0.00013909,2]
[353480035,1739875838153,-628.53,0.00013909,2]
[353480036,1739875838163,-504.47189125,0.00013909,2]
[353480037,1739875838173,-588.96,0.00013909,2]
[353480038,1739875838183,-500.0,0.00013909,2]
[353480039,1739875838192,-500.0,0.00013909,2]
[353480040,1739875838201,-500.0,0.00013909,2]
[353480041,1739875838210,-500.0,0.00013909,2]
[353480042,1739875838220,-500.0,0.00013909,2]
[353480043,1739875838229,-500.0,0.00013909,2]
[353480044,1739875838239,-500.0,0.00013909,2]
[353480045,1739875838248,-500.0,0.0001391,2]
[353480046,1739875838257,-500.0,0.0001391,2]
[353480047,1739875838266,-500.0,0.0001391,2]
[353480048,1739875838276,-500.0,0.0001391,2]
[353480049,1739875838285,-500.0,0.0001391,2]
[353480050,1739875838295,-500.0,0.0001391,2]
[353480051,1739875838306,-500.0,0.0001391,2]
[353480052,1739875838316,-500.0,0.0001391,2]
[353480053,1739875838325,-500.0,0.0001391,2]
[353480054,1739875838335,-624.90295096,0.0001391,2]
[353480055,1739875838344,-503.78936764,0.0001391,2]
[353480056,1739875838354,-247.49734324,0.0001391,2]
[353480057,1739875838363,-500.0,0.0001391,2]
[353480058,1739875838373,-500.0,0.0001391,2]
[353480059,1739875838382,-343.50320879,0.0001391,2]
[353480060,1739875838392,-500.0,0.0001391,2]
[353480061,1739875838402,-500.0,0.0001391,2]
[353480062,1739875838411,-500.0,0.0001391,2]
[353480063,1739875838421,-500.0,0.0001391,2]
[353480064,1739875838431,-500.0,0.0001391,2]
[353480065,1739875838445,-500.0,0.0001391,2]
[353480066,1739875838455,-500.0,0.0001391,2]
[353480067,1739875838465,-500.0,0.0001391,2]
[353480068,1739875838474,-500.0,0.0001391,2]
[353480069,1739875838483,-643.37,0.0001391,2]
[353480070,1739875838493,-500.0,0.0001391,2]
[353480071,1739875838503,-500.0,0.0001391,2]
[353480072,1739875838512,-500.0,0.0001391,2]
[353480073,1739875838521,-500.0,0.0001391,2]
[353480074,1739875838531,-500.0,0.0001391,2]
[353480075,1739875838540,-500.0,0.0001391,2]
[353480076,1739875838550,-500.0,0.0001391,2]
[353480077,1739875838561,-500.0,0.0001391,2]
[353480078,1739875838571,-500.0,0.0001391,2]
[353480079,1739875838580,-500.0,0.0001391,2]
[353480080,1739875838589,-511.87366295,0.0001391,2]
[353480081,1739875838599,-500.0,0.0001391,2]
[353480082,1739875838609,-500.48950834,0.0001391,2]
[353480083,1739875838618,-500.0,0.0001391,2]
[353480084,1739875838629,-500.0,0.0001391,2]
[353480085,1739875838638,-500.0,0.0001391,2]
[353480086,1739875838647,-500.0,0.0001391,2]
[353480087,1739875838656,-500.0,0.0001391,2]
[353480088,1739875838666,-500.0,0.0001391,2]
[353480089,1739875838676,-500.8094344,0.0001391,2]
[353480090,1739875838686,-502.89722518,0.0001391,2]
[353480091,1739875838695,-500.0,0.0001391,2]
[353480092,1739875838705,-500.0,0.0001391,2]
[353480093,1739875838715,-500.0,0.0001391,2]
[353480094,1739875838724,-500.0,0.0001391,2]
[353480095,1739875838734,-500.0,0.0001391,2]
[353480096,1739875838743,-500.0,0.0001391,2]
[353480097,1739875838753,-500.0,0.0001391,2]
[353480098,1739875838762,-500.0,0.0001391,2]
[353480099,1739875838772,-500.0,0.0001391,2]
[353480100,1739875838781,-597.13142421,0.0001391,2]
[353480101,1739875838791,-500.0,0.0001391,2]
[353480102,1739875838800,-500.0,0.0001391,2]
[353480103,1739875838811,-500.0,0.0001391,2]
[353480104,1739875838821,-500.0,0.0001391,2]
[353480105,1739875838830,-308.90498347,0.0001391,2]
[353480106,1739875838845,-191.09501653,0.0001391,2]
[353480107,1739875838854,-500.0,0.0001391,2]
[353480108,1739875838865,-584.94,0.0001391,2]
[353480109,1739875838875,-500.0,0.0001391,2]
[353480110,1739875838885,-500.0,0.0001391,2]
[353480111,1739875838894,-500.0,0.0001391,2]
[353480112,1739875838904,-500.0,0.0001391,2]
[353480113,1739875838913,-500.0,0.0001391,2]
[353480114,1739875838923,-500.0,0.0001391,2]
[353480115,1739875838933,-500.0,0.0001391,2]
[353480116,1739875838942,-402.62636359,0.0001391,2]
[353480117,1739875838952,-500.0,0.0001391,2]
[353480118,1739875838961,-500.0,0.0001391,2]
[353480119,1739875838971,-500.0,0.0001391,2]
[353480120,1739875838980,-500.0,0.0001391,2]
[353480121,1739875838989,-500.0,0.0001391,2]
[353480122,1739875838998,-500.0,0.0001391,2]
[353480123,1739875839008,-280.97020922,0.0001391,2]
[353480124,1739875839018,-503.28146035,0.0001391,2]
[353480125,1739875839027,-500.0,0.0001391,2]
[353480126,1739875839037,-500.49467115,0.0001391,2]
[353480127,1739875839047,-500.0,0.0001391,2]
[353480128,1739875839058,-500.0,0.0001391,2]
[353480129,1739875839069,-500.0,0.0001391,2]
[353480130,1739875839082,-500.0,0.0001391,2]
[353480131,1739875839092,-503.76024766,0.0001391,2]
[353480132,1739875839102,-537.2282475,0.0001391,2]
[353480133,1739875839111,-502.68155752,0.0001391,2]
[353480134,1739875839122,-500.36277807,0.0001391,2]
[353480135,1739875839131,-500.0,0.0001391,2]
[353480136,1739875839141,-500.0,0.0001391,2]
[353480137,1739875839151,-206.82778279,0.0001391,2]
[353480138,1739875839162,-500.0,0.0001391,2]
[353480139,1739875839171,-500.0,0.0001391,2]
[353480140,1739875839181,-500.0,0.0001391,2]
[353480141,1739875839191,-500.0,0.0001391,2]
[353480142,1739875839200,-500.0,0.0001391,2]
[353480143,1739875839209,-500.0,0.0001391,2]
[353480144,1739875839219,-500.0,0.0001391,2]
[353480145,1739875839229,-416.20059389,0.0001391,2]
[353480146,1739875839242,-83.79940611,0.0001391,2]
[353480147,1739875839252,-500.0,0.0001391,2]
[353480148,1739875839261,-500.0,0.0001391,2]
[353480149,1739875839271,-500.0,0.0001391,2]
[353480150,1739875839280,-500.0,0.0001391,2]
[353480151,1739875839289,-263.69879512,0.0001391,2]
[353480152,1739875839301,-236.30120488,0.0001391,2]
[353480153,1739875839311,-500.0,0.0001391,2]
[353480154,1739875839319,-500.0,0.0001391,2]
[353480155,1739875839410,-395.21727026,0.0001391,2]
[353480156,1739875839419,-500.0,0.0001391,2]
[353480157,1739875839429,-500.0,0.0001391,2]
[353480158,1739875839438,-500.0,0.0001391,2]
[353480159,1739875839447,-500.0,0.0001391,2]
[353480160,1739875839456,-500.0,0.0001391,2]
[353480161,1739875839466,-500.0,0.0001391,2]
[353480162,1739875839475,-500.0,0.0001391,2]
[353480163,1739875839485,-500.0,0.0001391,2]
[353480164,1739875839494,-500.0,0.0001391,2]
[353480165,1739875839504,-303.78036117,0.0001391,2]
[353480166,1739875839513,-500.0,0.0001391,2]
[353480167,1739875839521,-500.0,0.0001391,2]
[353480168,1739875839531,-500.0,0.0001391,2]
[353480170,1739875839540,-500.0,0.0001391,2]
[353480172,1739875839550,-500.0,0.0001391,2]
[353480174,1739875839561,-500.0,0.0001391,2]
[353480176,1739875839570,-580.62,0.0001391,2]
[353480178,1739875839579,-505.76299874,0.0001391,2]
[353480180,1739875839588,-500.0,0.0001391,2]
[353480181,1739875839598,-500.0,0.0001391,2]
[353480184,1739875839608,-500.80926623,0.0001391,2]
[353480186,1739875839617,-538.46,0.0001391,2]
[353480188,1739875839626,-500.0,0.0001391,2]
[353480189,1739875839636,-590.91,0.0001391,2]
[353480190,1739875839645,-500.0,0.0001391,2]
[353480192,1739875839654,-500.0,0.0001391,2]
[353480193,1739875839663,-500.0,0.0001391,2]
[353480194,1739875839673,-507.92366608,0.0001391,2]
[353480195,1739875839682,-500.0,0.0001391,2]
[353480196,1739875839691,-500.0,0.0001391,2]
[353480197,1739875839701,-500.0,0.0001391,2]
[353480198,1739875839710,-500.0,0.0001391,2]
[353480199,1739875839719,-500.0,0.0001391,2]
[353480200,1739875839728,-217.30890266,0.0001391,2]
[353480201,1739875839740,-282.69109734,0.0001391,2]
[353480202,1739875839750,-230.14872455,0.0001391,2]
[353480204,1739875839762,-269.85127545,0.0001391,2]
[353480206,1739875839773,-500.0,0.0001391,2]
[353480207,1739875839783,-500.0,0.0001391,2]
[353480209,1739875839792,-500.0,0.0001391,2]
[353480210,1739875839802,-500.0,0.0001391,2]
[353480211,1739875839811,-500.11331885,0.0001391,2]
[353480212,1739875839821,-527.49447411,0.0001391,2]
[353480213,1739875839830,-114.96618784,0.0001391,2]
[353480214,1739875839842,-385.03381216,0.0001391,2]
[353480215,1739875839851,-500.0,0.0001391,2]
[353480217,1739875839861,-300.0,0.0001391,2]
[353480219,1739875839870,-500.0,0.0001391,2]
[353480220,1739875839879,-307.86555289,0.0001391,2]
[353480222,1739875839888,-500.0,0.0001391,2]
[353480223,1739875839898,-500.0,0.0001391,2]
[353480224,1739875839907,-583.04021555,0.0001391,2]
[353480226,1739875839916,-500.0,0.0001391,2]
[353480228,1739875839925,-620.80016253,0.0001391,2]
[353480229,1739875839935,-556.13545161,0.0001391,2]
[353480230,1739875839944,-500.0,0.0001391,2]
[353480231,1739875839954,-500.0,0.0001391,2]
[353480232,1739875839963,-500.0,0.0001391,2]
[353480233,1739875839972,-500.0,0.0001391,2]
[353480234,1739875839981,-500.0,0.0001391,2]
[353480235,1739875839991,-500.0,0.0001391,2]
[353480236,1739875840000,-500.0,0.0001391,2]
[353480237,1739875840009,-500.0,0.0001391,2]
[353480238,1739875840019,-500.71345574,0.0001391,2]
[353480239,1739875840028,-500.0,0.0001391,2]
[353480240,1739875840037,-500.77121331,0.0001391,2]
[353480241,1739875840047,-187.7885143,0.0001391,2]
[353480242,1739875840058,-500.0,0.0001391,2]
[353480243,1739875840067,-500.0,0.0001391,2]
[353480244,1739875840077,-511.76980064,0.0001391,2]
[353480245,1739875840090,-500.0,0.0001391,2]
[353480246,1739875840099,-500.0,0.0001391,2]
[353480247,1739875840109,-602.72,0.0001391,2]
[353480248,1739875840118,-500.0,0.0001391,2]
[353480249,1739875840129,-377.65201065,0.0001391,2]
[353480250,1739875840140,-122.34798935,0.0001391,2]
[353480251,1739875840149,-500.0,0.0001391,2]
[353480252,1739875840161,-500.0,0.0001391,2]
[353480253,1739875840170,-500.0,0.0001391,2]
[353480255,1739875840180,-500.0,0.0001391,2]
[353480256,1739875840189,-500.0,0.0001391,2]
[353480258,1739875840198,-500.0,0.0001391,2]
[353480260,1739875840207,-525.12,0.0001391,2]
[353480261,1739875840216,-500.0,0.0001391,2]
[353480263,1739875840225,-500.0,0.0001391,2]
[353480264,1739875840235,-581.5,0.0001391,2]
[353480265,1739875840244,-500.0,0.0001391,2]
[353480266,1739875840254,-503.53003335,0.0001391,2]
[353480267,1739875840263,-500.0,0.0001391,2]
[353480268,1739875840273,-500.0,0.0001391,2]
[353480269,1739875840283,-500.0,0.0001391,2]
[353480270,1739875840292,-402.31143095,0.0001391,2]
[353480271,1739875840301,-500.0,0.0001391,2]
[353480272,1739875840311,-500.0,0.0001391,2]
[353480273,1739875840320,-505.61358378,0.0001391,2]
[353480274,1739875840329,-500.0,0.0001391,2]
[353480275,1739875840339,-500.0,0.0001391,2]
[353480276,1739875840348,-500.0,0.0001391,2]
[353480277,1739875840357,-500.0,0.0001391,2]
[353480278,1739875840366,-500.0,0.0001391,2]
[353480279,1739875840375,-585.12,0.0001391,2]
[353480280,1739875840384,-501.07620013,0.0001391,2]
[353480281,1739875840393,-500.0,0.0001391,2]
[353480283,1739875840403,-500.0,0.0001391,2]
[353480284,1739875840411,-500.0,0.0001391,2]
[353480285,1739875840421,-500.0,0.0001391,2]
[353480286,1739875840430,-500.0,0.0001391,2]
[353480287,1739875840439,-500.0,0.0001391,2]
[353480288,1739875840450,-541.03290781,0.00013911,2]
[353480289,1739875840459,-500.0,0.00013911,2]
[353480290,1739875840468,-500.0,0.00013911,2]
[353480291,1739875840478,-500.0,0.00013911,2]
[353480292,1739875840489,-500.0,0.00013911,2]
[353480293,1739875840498,-500.0,0.00013911,2]
[353480294,1739875840508,-500.0,0.00013911,2]
[353480295,1739875840517,-500.0,0.00013912,2]
[353480296,1739875840526,-500.0,0.00013912,2]
[353480297,1739875840536,-501.54950664,0.00013912,2]
[353480298,1739875840545,-500.0,0.00013989,2]
[353480299,1739875840555,-500.0,0.0001399,2]
[353480300,1739875840564,-500.0,0.0001399,2]
[353480301,1739875840573,-500.0,0.0001399,2]
[353480302,1739875840582,-500.0,0.0001399,2]
[353480303,1739875840591,-500.0,0.0001399,2]
[353480304,1739875840601,-500.0,0.0001399,2]
[353480305,1739875840610,-500.0,0.0001399,2]
[353480306,1739875840620,-500.0,0.0001399,2]
[353480307,1739875840629,-500.0,0.0001399,2]
[353480308,1739875840638,-500.0,0.0001399,2]
[353480309,1739875840648,-500.0,0.0001399,2]
[353480310,1739875840658,-500.0,0.0001399,2]
[353480311,1739875840667,-500.0,0.0001399,2]
[353480312,1739875840676,-571.41,0.0001399,2]
[353480313,1739875840686,-500.0,0.0001399,2]
[353480314,1739875840695,-500.0,0.0001399,2]
[353480315,1739875840704,-500.0,0.0001399,2]
[353480316,1739875840713,-500.0,0.0001399,2]
[353480317,1739875840723,-500.0,0.0001399,2]
[353480318,1739875840732,-500.0,0.0001399,2]
[353480319,1739875840742,-500.0,0.0001399,2]
[353480320,1739875840751,-199.87,0.0001399,2]
[353480321,1739875840760,-500.0,0.0001399,2]
[353480322,1739875840770,-500.0,0.0001399,2]
[353480323,1739875840779,-500.0,0.0001399,2]
[353480324,1739875840788,-500.0,0.0001399,2]
[353480325,1739875840798,-500.0,0.0001399,2]
[353480326,1739875840808,-631.26,0.0001399,2]
[353480327,1739875840817,-350.02,0.0001399,2]
[353480328,1739875840826,-420.12,0.0001399,2]
[353480329,1739875840835,-500.0,0.0001399,2]
[353480330,1739875840845,-570.45,0.0001399,2]
[353480331,1739875840854,-500.0,0.00013991,2]
[353480332,1739875840863,-639.25775914,0.00013991,2]
[353480333,1739875840872,-237.07,0.00013992,2]
[353480334,1739875840881,-392.5,0.00013992,2]
[353480335,1739875840891,-387.96,0.00013992,2]
[353480336,1739875840900,-500.0,0.00013992,2]
[353480337,1739875840909,-283.25,0.00013992,2]
[353480338,1739875840919,-500.0,0.00013992,2]
[353480339,1739875840928,-171.34,0.00013992,2]
[353480340,1739875840938,-370.37,0.00013992,2]
[353480341,1739875840947,-163.92,0.00013992,2]
[353480342,1739875840956,-500.0,0.00013992,2]
[353480343,1739875840966,-500.0,0.00013992,2]
[353480344,1739875840975,-405.97,0.00013992,2]
[353480345,1739875840985,-376.64,0.00013992,2]
[353480346,1739875840994,-466.08,0.00013992,2]
[353480347,1739875841004,-165.64,0.00013992,2]
[353480348,1739875841013,-251.59,0.00013992,2]
[353480349,1739875841023,-182.5,0.00013992,2]
[353480350,1739875841033,-369.01,0.00013992,2]
[353480351,1739875841043,-162.82,0.00013992,2]
[353480352,1739875841052,-242.48,0.00013992,2]
[353480353,1739875841063,-500.0,0.00013992,2]
[353480354,1739875841073,-209.19,0.00013992,2]
[353480355,1739875841084,-197.48,0.00013992,2]
[353480356,1739875841101,-234.73,0.00013992,2]
[353480357,1739875841111,-605.86,0.00013992,2]
[353480358,1739875841126,-500.0,0.00013992,2]
[353480359,1739875841135,-161.79,0.00013992,2]
[353480360,1739875841145,-552.8,0.00013992,2]
[353480361,1739875841155,-2547.52,0.00013992,2]
[353480362,1739875841166,-500.0,0.00013992,2]
[353480363,1739875841175,-474.42,0.00013992,2]
[353480364,1739875841185,-208.88,0.00013992,2]
[353480365,1739875841195,-419.37,0.00013992,2]
[353480366,1739875841204,-178.58,0.00013992,2]
[353480367,1739875841214,-588.96,0.00013992,2]
[353480368,1739875841223,-330.52,0.00013992,2]
[353480369,1739875841233,-500.0,0.00013992,2]
[353480370,1739875841243,-500.0,0.00013992,2]
[353480371,1739875841252,-500.0,0.00013992,2]
[353480372,1739875841261,-500.0,0.00013993,2]
[353480373,1739875841270,-401.18,0.00013993,2]
[353480374,1739875841280,-500.0,0.00014071,2]
[353480375,1739875841290,-500.0,0.00014073,2]
[353480376,1739875841300,-500.0,0.00014073,2]
[353480377,1739875841311,-500.0,0.00014073,2]
[353480378,1739875841321,-500.0,0.00014073,2]
[353480379,1739875841330,-571.41,0.00014073,2]
[353480380,1739875841340,-500.0,0.00014073,2]
[353480381,1739875841349,-500.0,0.00014073,2]
[353480382,1739875841360,-500.0,0.00014073,2]
[353480383,1739875841369,-500.0,0.00014073,2]
[353480384,1739875841379,-500.0,0.00014073,2]
[353480385,1739875841388,-500.0,0.00014073,2]
[353480386,1739875841397,-316.2,0.00014073,2]
[353480387,1739875841407,-447.88,0.00014073,2]
[353480388,1739875841416,-500.0,0.00014073,2]
[353480389,1739875841426,-317.82,0.00014074,2]
[353480390,1739875841436,-222.84,0.00014074,2]
[353480391,1739875841445,-605.86,0.00014074,2]
[353480392,1739875841455,-317.31,0.00014074,2]
[353480393,1739875841464,-2547.52,0.00014074,2]
[353480394,1739875841474,-500.0,0.00014074,2]
[353480395,1739875841484,-588.96,0.00014074,2]
[353480396,1739875841493,-500.0,0.00014074,2]
[353480397,1739875841502,-500.0,0.00014074,2]
[353480398,1739875841512,-197.59,0.00014075,2]
[353480399,1739875841522,-500.0,0.00014075,2]
[353480400,1739875841531,-200.22,0.00014075,2]
[353480401,1739875841616,-500.0,0.00014076,2]
[353480402,1739875841626,-500.0,0.00014153,2]
[353480403,1739875841636,-500.0,0.00014155,2]
[353480404,1739875841646,-500.0,0.00014155,2]
[353480405,1739875841657,-500.0,0.00014155,2]
[353480406,1739875841666,-500.0,0.00014155,2]
[353480407,1739875841676,-571.41,0.00014155,2]
[353480408,1739875841686,-500.0,0.00014155,2]
[353480409,1739875841696,-199.16,0.00014155,2]
[353480410,1739875841705,-500.0,0.00014155,2]
[353480411,1739875841715,-500.0,0.00014155,2]
[353480412,1739875841724,-500.0,0.00014155,2]
[353480413,1739875841733,-500.0,0.00014155,2]
[353480414,1739875841743,-207.99,0.00014155,2]
[353480415,1739875841752,-605.86,0.00014156,2]
[353480416,1739875841761,-2547.52,0.00014156,2]
[353480417,1739875841771,-219.92,0.00014156,2]
[353480418,1739875841781,-588.96,0.00014156,2]
[353480419,1739875841790,-503.42,0.00014156,2]
[353480420,1739875841799,-298.82,0.00014156,2]
[353480421,1739875841811,-506.93,0.00014157,2]
[353480422,1739875841821,-536.76,0.00014158,2]
[353480423,1739875841831,-600.0,0.00014164,2]
[353480424,1739875841840,-180.08516743,0.00014191,2]